Cogmind - Beta 14 *** ADVENTURER MODE // 2024.08.09 @ 13:06:25 Player: AnotherZach Result: Destroyed by Piercing Trap Performance ------------- Evolutions (0) 0 Regions Visited (2) 400 Robots Destroyed (18) 90 Value Destroyed (297) 297 Prototype IDs (0) 0 Alien Tech Used (0) 0 Bonus (0) 0 TOTAL SCORE: 787 Bonus ------- None Cogmind --------- Core Integrity 0/250 Matter 249/300 Energy 100/100 System Corruption 0% Temperature Cool (3) Movement Flying (40) Location -10/Subcaves Parts ------- > --- POWER (1) -------- (None) > --- PROPULSION (2) --- Flight Unit > --- UTILITY (2) ------ Makeshift Hacking Suite > --- WEAPON (2) ------- Battle Rifle > --- INVENTORY (5) ---- Light Treads Improved Heat Sink Huge Storage Unit Large Matter Pod (5) Peak State ------------ > --- POWER ------------ Light Nuclear Core > --- PROPULSION ------- Wheel Wheel > --- UTILITY ---------- Large Storage Unit Tractor Beam > --- WEAPON ----------- Light Assault Rifle Light Assault Rifle > --- INVENTORY -------- Ion Engine Ion Engine Ion Engine Light Treads Light Treads Wheel Wheel Wheel Compact Wheel Flight Unit Flight Unit Small Storage Unit Large Battery Seismic Detector [Rating: 10] Favorites ----------- Power Ion Engine Engine Ion Engine Power Core Light Nuclear Core Propulsion Wheel Wheel Wheel Flight Unit Flight Unit Utility Seismic Detector Device Seismic Detector Storage High-capacity Storage Unit Hackware Makeshift Hacking Suite Weapon Light Assault Rifle Ballistic Gun Light Assault Rifle Launcher Subdweller Shrapnel Launcher Slashing Weapon Mining Claw Build | -11 -10 -10 ------- Run | Yrd Mat Sub Slots Evolved . | . . . Power . | . . . Propulsion . | . . . Utility . | . . . Weapon . | . . . Parts Attached 28 | 7 10 11 Power 3 | 1 2 . Engine 2 | 1 1 . Core 1 | . 1 . Reactor . | . . . Propulsion 8 | 2 3 3 Treads . | . . . Leg . | . . . Wheel 6 | 2 3 1 Hover . | . . . Flight 2 | . . 2 Utility 8 | 2 4 2 Device 2 | 1 1 . Storage 5 | 1 3 1 Processor . | . . . Hackware 1 | . . 1 Protection . | . . . Artifact . | . . . Weapon 9 | 2 1 6 Energy Gun . | . . . Energy Cannon . | . . . Ballistic Gun 4 | 2 . 2 Ballistic Cannon . | . . . Launcher 1 | . . 1 Special Weapon . | . . . Impact Weapon . | . . . Slashing Weapon 4 | . 1 3 Piercing Weapon . | . . . Special Melee Weapon . | . . . Unidentified Prototypes . | . . . Parts Lost 4 | . . 4 Power 1 | . . 1 Propulsion 2 | . . 2 Utility 1 | . . 1 Weapon . | . . . Highest Loss Streak 2 | . . 2 To Critical Strikes . | . . . Average Slot Usage (%) 87 | . 99 71 Engine 8 | . 10 5 Core 1 | . 2 . Wheel 21 | . 28 12 Flight 6 | . . 14 Device 9 | . 14 4 Storage 10 | . 14 6 Hackware 1 | . . 4 Ballistic Gun 20 | . 23 16 Launcher 1 | . . 2 Slashing Weapon 4 | . 4 3 Peak Build Rating 10 | 7 10 9 Average Rating 7 | 5 8 7 On Entrance 5 | . 7 9 Naked Turns . | . . . Heaviest Build 49 | 13 49 48 Greatest Support 26 | 20 20 26 Greatest Overweight (x) 2 | . 2 2 Average Overweight (x) . | . 1 . Largest Inventory Capacity 25 | 8 25 20 Average Capacity 13 | 7 15 11 Most Carried 18 | 8 18 17 Average Carried 11 | 4 14 9 Final Capacity 20 | 8 20 5 Final Carried 17 | 8 17 4 Class Distribution -------------------- 86% | Mutant 13% | Hacker-Mutant Dominant Class ---------------- Mutant | -10/Materials Mutant | -10/Subcaves Resources | -11 -10 -10 ----------- Run | Yrd Mat Sub Matter Collected 545 | 294 170 81 Remotely 107 | 67 40 . Salvage Created 595 | 141 357 97 Parts 47 | 10 32 5 Haulers Intercepted 1 | . 1 . Recyclers Shooed 3 | . 3 . Parts Field Recycled . | . . . Retrieved Matter . | . . . Parts Self-Destructed . | . . . Prevented . | . . . Kills | -11 -10 -10 ------- Run | Yrd Mat Sub Combat Hostiles Destroyed 10 | . 8 2 Guns 10 | . 8 2 Classes Destroyed 8 | 2 5 1 Worker 1 | . 1 . Tunneler 3 | 3 . . Hauler 1 | . 1 . Recycler 2 | 1 1 . Watcher 1 | . 1 . Swarmer 5 | . 5 . Grunt 3 | . 3 . Subdweller 2 | . . 2 Best Kill Streak 3 | 3 3 2 Combat Bots Only 3 | . 3 2 Max Kills in Single Turn 1 | 1 1 1 Gunslinging . | . . . Exploded . | . . . Melee . | . . . Uniques/NPCs Destroyed . | . . . Combat | -11 -10 -10 -------- Run | Yrd Mat Sub Hostile Shots Fired 91 | . 25 66 Missed 33 | . 3 30 Damage Taken 850 | . 177 673 Core 261 | . 44 217 Absorbed by Shields . | . . . Ignored by Resistances 241 | . 60 181 Regen/Repaired (Parts) 17 | . 17 . Core Remaining (%) 100 | 100 . . Volleys Fired 66 | 12 35 19 Largest 2 | 2 2 2 Hottest 40 | 40 40 40 Shots Fired 131 | 24 69 38 Gun 131 | 24 69 38 Cannon . | . . . Launcher . | . . . Special . | . . . Kinetic 131 | 24 69 38 Thermal . | . . . Explosive . | . . . Electromagnetic . | . . . Robot Hit Streak 30 | 11 17 30 Robot Miss Streak 2 | 1 2 1 Penetration Max . | . . . Secondary Targets 2 | . 1 1 Max Gunslinging Chain 1 | . 1 1 Shots Hit Robots 100 | 19 45 36 Core Hits 39 | 8 23 8 Critical Kills 1 | . 1 . Critical Parts Destroyed . | . . . Critical Strikes 1 | . 1 . Destroy 1 | . 1 . Melee Attacks 13 | . 1 12 Impact . | . . . Slashing 13 | . 1 12 Piercing . | . . . Sneak Attacks . | . . . Combat Hostiles . | . . . Follow-up Attacks . | . . . Damage Inflicted 806 | 153 374 279 Guns 806 | 153 374 279 Cannons . | . . . Explosions . | . . . Melee . | . . . Ramming . | . . . Kinetic 806 | 153 374 279 Thermal . | . . . Explosive . | . . . Electromagnetic . | . . . Impact . | . . . Slashing . | . . . Piercing . | . . . Highest Corruption . | . . . Average Corruption . | . . . Corruption Purged . | . . . Corruption Blocked . | . . . Overload Shots . | . . . Overflow Damage . | . . . Projectiles . | . . . Explosions . | . . . Melee . | . . . Knockbacks . | . . . Impact . | . . . Kinetic . | . . . Secondary . | . . . Self-Inflicted Damage . | . . . Shots . | . . . Rammed . | . . . Targets Rammed . | . . . Kicked . | . . . Crushed . | . . . Highest Temperature 20 | . 20 . Average Temperature 5 | . 5 . Received Heat Transfer 141 | . 39 102 Siege Activations . | . . . Robots Corrupted . | . . . Combat Hostiles . | . . . Parts Fried . | . . . Impact Corruptions . | . . . Robots Melted . | . . . Combat Hostiles . | . . . Parts Melted . | . . . Heat Transferred . | . . . Parts Sabotaged . | . . . Parts Stolen . | . . . Parts Stripped . | . . . Power Chain Reactions . | . . . Alert | -11 -10 -10 ------- Run | Yrd Mat Sub Peak Influence 288 | 20 288 . Initial 11 | . 11 . Average 92 | 7 100 . Maximum Alert Level 1 | . 1 . Low Security (%) 88 | 100 87 . Level 1 11 | . 12 . Level 2 . | . . . Level 3 . | . . . Level 4 . | . . . Level 5 . | . . . High Security . | . . . Max Security . | . . . Squads Dispatched 1 | . 1 . Investigation 1 | . 1 . Extermination . | . . . Reinforcement . | . . . Assault . | . . . Garrison . | . . . Intercept . | . . . Searches Triggered . | . . . Construction Impeded . | . . . Haulers Reinforced . | . . . Active Scanning Responses . | . . . Cargo Convoy Interrupts . | . . . Stealth | -11 -10 -10 --------- Run | Yrd Mat Sub Distress Signals . | . . . Communications Jammed . | . . . Distress Signals . | . . . Times Spotted 29 | . 13 16 Peak Tracking Total 5 | . 3 5 Tactical Retreats 4 | . . 4 Traps | -11 -10 -10 ------- Run | Yrd Mat Sub Traps Triggered 4 | . 3 1 Indirectly . | . . . Trap Hack Attempts . | . . . Triggered . | . . . Disarmed . | . . . Reprogrammed . | . . . Reused . | . . . Traps Extracted . | . . . Installed . | . . . Triggered . | . . . Machines | -11 -10 -10 ---------- Run | Yrd Mat Sub Machines Disabled . | . . . Max in Single Turn . | . . . Machines Repaired . | . . . Machines Dismantled . | . . . Machines Sabotaged . | . . . Overloaded Fab Kills . | . . . Hacking | -11 -10 -10 --------- Run | Yrd Mat Sub Machines Accessed 11 | . 9 2 Terminals 8 | . 8 . Fabricators . | . . . Repair Stations 1 | . 1 . Recycling Units . | . . . Scanalyzers . | . . . Garrison Access . | . . . Total Hacks 36 | . 33 3 Successful 24 | . 21 3 Failed 11 | . 11 . Catastrophic . | . . . Database Lockouts 1 | . 1 . Manual 28 | . 28 . Terminals 31 | . 31 . Fabricators . | . . . Repair Stations 2 | . 2 . Recycling Units . | . . . Scanalyzers . | . . . Garrison Access . | . . . Terminal Hacks 9 | . 6 3 Record 1 | . . 1 Part Schematic 2 | . 2 . Robot Schematic 2 | . 2 . Robot Analysis 1 | . 1 . Open Door 1 | . . 1 Hauler Manifests 1 | . 1 . Release Object 1 | . . 1 Fabricator Hacks . | . . . Repair Station Hacks 2 | . 2 . Scan Component 1 | . 1 . Repair 1 | . 1 . Recycling Unit Hacks . | . . . Scanalyzer . | . . . Garrison Access Hacks . | . . . Unauthorized Hacks 13 | . 13 . Terminals 13 | . 13 . Track 2 | . 2 . Botnet 3 | . 3 . Disrupt 1 | . 1 . Skim 7 | . 7 . Fabricators . | . . . Repair Stations . | . . . Recycling Units . | . . . Scanalyzers . | . . . Garrison Access . | . . . Data Cores Recovered . | . . . Used . | . . . Hacking Detections 8 | . 8 . Full Trace Events 2 | . 2 . Feedback Events . | . . . Feedback Blocked . | . . . Robot Schematics Acquired 2 | . 2 . Robots Built . | . . . Authchips . | . . . Time . | . . . Total Robot Build Rating . | . . . Part Schematics Acquired 2 | . 2 . Parts Built . | . . . Authchips . | . . . Time . | . . . Total Part Build Rating . | . . . Parts Repaired 1 | . 1 . Time 38 | . 38 . Parts Recycled . | . . . Recycled Matter . | . . . Retrieved Matter . | . . . Retrieved Components . | . . . Parts Scanalyzed . | . . . Part Schematics Acquired . | . . . Parts Damaged . | . . . Bothacking | -11 -10 -10 ------------ Run | Yrd Mat Sub Used RIF Installer . | . . . Robots Hacked . | . . . Non-combat . | . . . Combat . | . . . Robot Hacks Applied . | . . . Relay Couplers Released . | . . . Fabnet Peak Effective % . | . . . Robots Rewired . | . . . Allies Hacked . | . . . Hacks Repelled . | . . . Allies | -11 -10 -10 -------- Run | Yrd Mat Sub Total Allies . | . . . Largest Group . | . . . Highest-Rated Group . | . . . Highest-Rated Ally . | . . . Total Orders . | . . . Ally Attacks . | . . . Total Damage . | . . . Kills . | . . . Allies Corrupted . | . . . Allies Melted . | . . . Intel | -11 -10 -10 ------- Run | Yrd Mat Sub Robot Analysis Total 1 | . 1 . Derelict Logs Recovered 2 | . . 2 Drone Launches . | . . . Drone Recoveries . | . . . Exploration | -11 -10 -10 ------------- Run | Yrd Mat Sub Turns Passed 1843 | 98 982 763 Spaces Moved 1767 | 60 562 1145 Core 9 | 9 . . Treads . | . . . Legs . | . . . Wheels 773 | 51 562 160 Hover . | . . . Flight 985 | . . 985 Fastest Speed 37 | 50 80 37 Average Speed 64 | 75 97 46 Slowest Speed 117 | 80 110 117 Overloaded Moves . | . . . Propulsion Burnouts . | . . . Robots Hopped 4 | . . 4 Cave-ins Triggered . | . . . Exploration Rate (%) 54 | 5 93 65 Regions Visited 2 Branch Regions 1 Pre-discovered Areas 2 | . 1 1 Known Exits Taken 1 | . 1 . Unknown Exits Taken 1 | 1 . . Scrap Searched . | . . . Spaces Dug 2 | . 1 1 Terrain Destroyed 2 | . 1 1 Melee 2 | . 1 1 Projectile . | . . . AOE . | . . . Terrain Rammed . | . . . Walls Destroyed . | . . . Machines Disabled . | . . . Actions | -11 -10 -10 --------- Run | Yrd Mat Sub Total 2350 | 93 937 1320 Wait 420 | . 301 119 Move 1757 | 59 561 1137 Hop 4 | . . 4 Pick Up 39 | 15 20 4 Fast Attach . | . . . Attach 19 | 7 2 10 Detach 3 | . . 3 Swap 9 | . 8 1 Drop 19 | . 9 10 Fire 66 | 12 35 19 Melee 13 | . 1 12 Ram . | . . . Kick . | . . . Crush . | . . . Escape Stasis . | . . . Rewire . | . . . Trap . | . . . Miscellaneous 1 | . . 1 Route ------- -11/Scrapyard -10/Materials (discovered 6 exits: *Mat x3 / [*Min x2] / *Sub) -10/Subcaves (discovered 2 exits: *Mat x2) History --------- Turn | Location | Event 17 | -11/Scrapyard | Discovered new exit (range 15) 99 | -11/Scrapyard | Entered Materials 319 | -10/Materials | Build established: Mutant 395 | -10/Materials | Discovered new exit (range 15) 408 | -10/Materials | Central database locked down 546 | -10/Materials | Discovered new exit (range 10) 595 | -10/Materials | Repaired Lgt. Nuclear Core 674 | -10/Materials | Discovered new exit (range 11) 731 | -10/Materials | Learned location of 1 exit from Storage 750 | -10/Materials | Discovered new exit (range 16) 802 | -10/Materials | Identified exit to Materials 864 | -10/Materials | Learned Storage security intel 959 | -10/Materials | Learned location of Mines (-8) 981 | -10/Materials | Discovered new exit (range 4) 1014 | -10/Materials | Learned 4 Subcaves zone layouts 1077 | -10/Materials | Identified exit to Subcaves 1081 | -10/Materials | Entered Subcaves 1082 | -10/Subcaves | Identified exit to Materials 1237 | -10/Subcaves | Learned location of 1 exit from Materials 1281 | -10/Subcaves | Core integrity fell below 50% 1380 | -10/Subcaves | Ambushed by Subdweller buried in earth 1385 | -10/Subcaves | Core integrity fell below 20% 1402 | -10/Subcaves | Learned location of 1 exit from Materials 1410 | -10/Subcaves | Released subatomizers from SUBCON Basin 1440 | -10/Subcaves | Shifting Twisted Machinery released Barrage Gun 1461 | -10/Subcaves | Shifting Twisted Machinery released Battle Cannon 1515 | -10/Subcaves | Shifting Twisted Machinery released Sub. Machine Gun 1522 | -10/Subcaves | Shifting Twisted Machinery released Sub. Beam Cannon 1582 | -10/Subcaves | Shifting Twisted Machinery released Mak. Hacking Suite 1600 | -10/Subcaves | Shifting Twisted Machinery released Battle Rifle 1663 | -10/Subcaves | Learned location of Zion (-6) 1663 | -10/Subcaves | Met a Zionite searching for "candidates" 1688 | -10/Subcaves | Ambushed by Subdwellers from Twisted Machinery 1844 | -10/Subcaves | Destroyed by Piercing Trap Last Messages --------------- 01600_ Acquired Mak. Hacking Suite. 01605_ Acquired Battle Rifle. 01626_ Acquired 15 matter. 01626_ Acquired 10 matter. 01652_ QZ-HZ6(u) tweaks Twisted Machinery. 01662_ 36-GRS(z): "She is not going to be happy we haven't found any suitable candidates yet." 01663_ 36-GRS(z): "Hey you! It's really dangerous down here, I feel that you could die at any moment. For your health and safety might I suggest a trip to Zion?" World map updated: -6/Zion. 01682_ Acquired 3 matter. 01688_ 87-7CV(R) emerges from the Twisted Machinery. 01764_ Flight Unit destroyed. 01784_ Dropped Mining Claw. 01844_ Triggered Piercing Trap. 01844_ Spikes shoot up from the floor. 01844_ Critical hit (Impale). Map ----- +----------------------------------------------------+ | ???????????????## ##??????????????????????????? | | ????????????????## #??????????????????????????? | | ???????????????## #??????????????????????????? | | ???????????????# ##??????????????????????????? | | ???????????????## ##???????????????????????????? | | ??????????????# #????????????????????????????? | | ???????????????## #????????????????????????????? | | ????????????##### ##????????????????????????????? | | ???????????## #????????????????????????????? | | #??????????# #????????????????????????????? | | ???????????# #????????????????????????????? | | #??????????# ##???????????????????????????? | | #?????????## ##??????????????????????????? | | #?????????# #??????????????????????????? | | #?####???## ## #?????????????????????????? | | ### ##### "###### ###?????????????????????????? | | ##" ##????## #????###????????????????????? | | ??#" ##???##### #???? ##???????????????????? | | ??##### #???## #??##???? ##??????????????????? | | ?????## #??## #???????? ##?????????????????? | | ????## ##?## ##?###??? #????? ??????????? | | ???##"[ ##?# ### #### #### ?????????? | | ??##""" #?# # ## ?????????? | | ??#"""""" ### ???????????? | | ?## " """" ] #??????????????????? | | ##""""""" """ ### # @ #??????????????????? | | #""""## """##?##### #??????????????????? | | #" ## #??????#### #??????????????????? | | #?????????## ????????????????? | | #??????????? ??????????????? | | ## #??????????? ?????????????? | | #### ## ##??????????? # ## #????????????? | | ???## ### ##???????????? ####??##????????????? | | ????####?# ##?????????????####???????????????????? | | ?????????###?????????????????????????????????????? | | ?????????????????????????????????????????????????? | | ?????????????????????????????????????????????????? | | ?????????????????????????????????????????????????? | | ?????????????????????????????????????????????????? | | ?????????????????????????????????????????????????? | | ?????????????????????????????????????????????????? | | ?????????????????????????????????????????????????? | | ?????????????????????????????????????????????????? | | ?????????????????????????????????????????????????? | | ?????????????????????????????????????????????????? | | ?????????????????????????????????????????????????? | | ?????????????????????????????????????????????????? | | ?????????????????????????????????????????????????? | | ?????????????????????????????????????????????????? | | | +----------------------------------------------------+ Best States ------------- Heat Dissipation 25 Energy Generation 14 Energy Capacity 250 Matter Stores 300 Matter Capacity 300 Sight Range 16 Terrain Scan Density 10 Resistance: KI 20 Resistance: TH 20 Resistance: EX 20 Resistance: EM 20 Resistance: I 20 Resistance: S 20 Resistance: P 20 Evasion (%) 62 Offensive Hacking 21 Item Schematics ----------------- Hcp. Storage Unit | -10/Materials | Hacked Propulsion Shielding | -10/Materials | Hacked Robot Schematics ------------------ M-13 Machinist | -10/Materials | Hacked O-16 Technician | -10/Materials | Hacked Fabricated ------------ Nothing Alien Tech Used ----------------- None Achievements -------------- None Challenges ------------ None Game ------ Seed KineticGhostFragment Manual? 0 Play Time 00:22:00 Cumulative 561.7 hours Start 2024.08.09 @ 12:49:04 End 2024.08.09 @ 13:06:25 Sessions 1 Manual Loads 0 Difficulty Adventurer Special Mode None Game No. 108 Rogue 0 Adventurer 108 Explorer 0 Win Type - Total 7 Types 4/0/1/2/0/0/0/0/0 Lore% 64 Gallery% 79 Achievement% 70 Wizard Run 0 Options --------- Layout 2 ASCII 0 Keyboard 0 Movement Mouse Keybinds 0 Fullscreen 1 Font 24/Smallcaps Map View 50x49 Zoom Use 0% Tactical HUD 1 Map Filters NONE Filters NONE Steam 1 RUN: d6ef945b-3cc7-4260-a02a-571283109c0e